[Event "January 2 Early 2024"]
[Site "https://www.chess.com"]
[Date "2024.01.02"]
[Round "4"]
[White "Kekic, Armin"]
[Black "Latreche, Khadidja"]
[Result "0-1"]
[Board "216"]
[TimeControl "180+1"]
[WhiteFideId "14401274"]
[BlackFideId "7901780"]
[WhiteElo "2336"]
[BlackElo "2108"]
[WhiteTeam "BIH"]
[BlackTeam "ALG"]
[WhiteClock "0:00:00"]
[BlackClock "0:00:06"]

1. e4 {[%clk 0:02:44]}  c5 {[%clk 0:02:58]} 2. Nf3 {[%clk 0:02:44]}  e6 {[%clk 0:02:56]} 3. d4 {[%clk 0:02:44]}  cxd4 {[%clk 0:02:57]} 4. Nxd4 {[%clk 0:02:44]}  Nc6 {[%clk 0:02:57]} 5. Nxc6 {[%clk 0:02:44]}  bxc6 {[%clk 0:02:57]} 6. Bd3 {[%clk 0:02:45]}  d5 {[%clk 0:02:57]} 7. O-O {[%clk 0:02:46]}  Bd6 {[%clk 0:02:41]} 8. Nc3 {[%clk 0:02:46]}  Ne7 {[%clk 0:02:33]} 9. Qe2 {[%clk 0:02:44]}  d4 {[%clk 0:02:27]} 10. Nb1 {[%clk 0:02:43]}  e5 {[%clk 0:02:27]} 11. Nd2 {[%clk 0:02:43]}  O-O {[%clk 0:02:23]} 12. Nc4 {[%clk 0:02:43]}  Bc7 {[%clk 0:02:23]} 13. b3 {[%clk 0:02:43]}  c5 {[%clk 0:02:12]} 14. a4 {[%clk 0:02:42]}  Rb8 {[%clk 0:02:08]} 15. Bd2 {[%clk 0:02:40]}  Ng6 {[%clk 0:02:03]} 16. Qh5 {[%clk 0:02:37]}  Qh4 {[%clk 0:01:58]} 17. Qxh4 {[%clk 0:02:33]}  Nxh4 {[%clk 0:01:57]} 18. Na5 {[%clk 0:02:05]}  Bd7 {[%clk 0:01:53]} 19. Rae1 {[%clk 0:02:01]}  Rfe8 {[%clk 0:01:52]} 20. Nc4 {[%clk 0:02:01]}  Ng6 {[%clk 0:01:47]} 21. g3 {[%clk 0:02:00]}  Bh3 {[%clk 0:01:44]} 22. f4 {[%clk 0:01:56]}  Bxf1 {[%clk 0:01:44]} 23. Rxf1 {[%clk 0:01:54]}  exf4 {[%clk 0:01:43]} 24. gxf4 {[%clk 0:01:54]}  f6 {[%clk 0:01:43]} 25. Kg2 {[%clk 0:01:48]}  Re7 {[%clk 0:01:41]} 26. Kg3 {[%clk 0:01:48]}  Rbe8 {[%clk 0:01:30]} 27. Kf3 {[%clk 0:01:37]}  Nh4+ {[%clk 0:01:28]} 28. Kg4 {[%clk 0:01:31]}  Ng6 {[%clk 0:01:25]} 29. Kf3 {[%clk 0:01:19]}  Nf8 {[%clk 0:01:24]} 30. h4 {[%clk 0:01:14]}  g6 {[%clk 0:01:18]} 31. Rg1 {[%clk 0:01:03]}  Kh8 {[%clk 0:01:17]} 32. Rh1 {[%clk 0:00:56]}  Ne6 {[%clk 0:01:15]} 33. Rg1 {[%clk 0:00:49]}  Ng7 {[%clk 0:01:14]} 34. Rh1 {[%clk 0:00:41]}  Nh5 {[%clk 0:01:13]} 35. Rg1 {[%clk 0:00:41]}  Ng7 {[%clk 0:01:03]} 36. Rg2 {[%clk 0:00:41]}  Nh5 {[%clk 0:01:02]} 37. Rg1 {[%clk 0:00:41]}  Rg7 {[%clk 0:00:41]} 38. b4 {[%clk 0:00:41]}  cxb4 {[%clk 0:00:37]} 39. Bxb4 {[%clk 0:00:42]}  Rf7 {[%clk 0:00:26]} 40. Bc5 {[%clk 0:00:36]}  Nxf4 {[%clk 0:00:22]} 41. Bxd4 {[%clk 0:00:19]}  Nxd3 {[%clk 0:00:21]} 42. cxd3 {[%clk 0:00:20]}  a6 {[%clk 0:00:19]} 43. a5 {[%clk 0:00:17]}  Rd8 {[%clk 0:00:17]} 44. Ke3 {[%clk 0:00:17]}  Kg7 {[%clk 0:00:16]} 45. Bb6 {[%clk 0:00:15]}  Be5 {[%clk 0:00:13]} 46. Rb1 {[%clk 0:00:14]}  Rc8 {[%clk 0:00:11]} 47. Rb4 {[%clk 0:00:13]}  Bg3 {[%clk 0:00:09]} 48. d4 {[%clk 0:00:12]}  Rd7 {[%clk 0:00:08]} 49. d5 {[%clk 0:00:12]}  Bxh4 {[%clk 0:00:08]} 50. Bd4 {[%clk 0:00:12]}  Bg5+ {[%clk 0:00:08]} 51. Kd3 {[%clk 0:00:11]}  h5 {[%clk 0:00:08]} 52. Rb6 {[%clk 0:00:11]}  h4 {[%clk 0:00:08]} 53. e5 {[%clk 0:00:08]}  h3 {[%clk 0:00:08]} 54. exf6+ {[%clk 0:00:08]}  Kh6 {[%clk 0:00:08]} 55. Ne5 {[%clk 0:00:07]}  Rxd5 {[%clk 0:00:06]} 56. Nf7+ {[%clk 0:00:07]}  Kh5 {[%clk 0:00:06]} 57. Nxg5 {[%clk 0:00:07]}  Kxg5 {[%clk 0:00:07]} 58. f7 {[%clk 0:00:08]}  Rf8 {[%clk 0:00:07]} 59. Rxa6 {[%clk 0:00:04]}  h2 {[%clk 0:00:06]} 60. Rf6 {[%clk 0:00:00]}  Rxd4+ {[%clk 0:00:06]} 0-1

[Event "January 2 Early 2024"]
[Site "https://www.chess.com"]
[Date "2024.01.02"]
[Round "4"]
[White "Seder, Mohammed"]
[Black "Subramanian, Anusha"]
[Result "0-1"]
[Board "217"]
[TimeControl "180+1"]
[WhiteFideId "11505567"]
[BlackFideId "477710"]
[WhiteElo "2328"]
[BlackElo "2107"]
[WhiteTeam "PLE"]
[BlackTeam "ENG"]
[WhiteClock "0:00:00"]
[BlackClock "0:00:02"]

1. b3 {[%clk 0:02:57]}  e5 {[%clk 0:02:59]} 2. Bb2 {[%clk 0:02:52]}  Nc6 {[%clk 0:02:59]} 3. e3 {[%clk 0:02:52]}  d5 {[%clk 0:02:58]} 4. Bb5 {[%clk 0:02:52]}  Bd6 {[%clk 0:02:58]} 5. f4 {[%clk 0:02:52]}  Qh4+ {[%clk 0:02:49]} 6. g3 {[%clk 0:02:50]}  Qe7 {[%clk 0:02:49]} 7. Nf3 {[%clk 0:02:44]}  f6 {[%clk 0:02:49]} 8. Nc3 {[%clk 0:02:38]}  Be6 {[%clk 0:02:40]} 9. d3 {[%clk 0:02:33]}  a6 {[%clk 0:02:38]} 10. Bxc6+ {[%clk 0:02:33]}  bxc6 {[%clk 0:02:39]} 11. Qe2 {[%clk 0:02:25]}  a5 {[%clk 0:02:26]} 12. h3 {[%clk 0:01:53]}  Nh6 {[%clk 0:01:58]} 13. O-O-O {[%clk 0:01:51]}  O-O {[%clk 0:01:38]} 14. Kb1 {[%clk 0:01:32]}  Rfb8 {[%clk 0:01:25]} 15. Na4 {[%clk 0:01:18]}  Ba3 {[%clk 0:01:03]} 16. Ba1 {[%clk 0:01:01]}  Qb4 {[%clk 0:00:58]} 17. Nc3 {[%clk 0:00:48]}  a4 {[%clk 0:00:40]} 18. fxe5 {[%clk 0:00:47]}  axb3 {[%clk 0:00:39]} 19. cxb3 {[%clk 0:00:42]}  fxe5 {[%clk 0:00:31]} 20. d4 {[%clk 0:00:36]}  e4 {[%clk 0:00:27]} 21. Ng5 {[%clk 0:00:31]}  Qd6 {[%clk 0:00:20]} 22. Nxe6 {[%clk 0:00:29]}  Qxe6 {[%clk 0:00:21]} 23. g4 {[%clk 0:00:29]}  Nf7 {[%clk 0:00:17]} 24. h4 {[%clk 0:00:27]}  Nd6 {[%clk 0:00:17]} 25. Rhf1 {[%clk 0:00:25]}  Nb5 {[%clk 0:00:16]} 26. Nxb5 {[%clk 0:00:23]}  Rxb5 {[%clk 0:00:17]} 27. Rf2 {[%clk 0:00:20]}  Be7 {[%clk 0:00:16]} 28. Rdf1 {[%clk 0:00:18]}  Bxh4 {[%clk 0:00:14]} 29. Rf5 {[%clk 0:00:18]}  Rba5 {[%clk 0:00:11]} 30. g5 {[%clk 0:00:15]}  h6 {[%clk 0:00:08]} 31. gxh6 {[%clk 0:00:11]}  Rxa2 {[%clk 0:00:07]} 32. Qxa2 {[%clk 0:00:10]}  Rxa2 {[%clk 0:00:08]} 33. Kxa2 {[%clk 0:00:09]}  Qxh6 {[%clk 0:00:07]} 34. Rf8+ {[%clk 0:00:08]}  Kh7 {[%clk 0:00:08]} 35. R8f4 {[%clk 0:00:08]}  Bg5 {[%clk 0:00:07]} 36. Rf7 {[%clk 0:00:06]}  Bxe3 {[%clk 0:00:06]} 37. Rxc7 {[%clk 0:00:06]}  Bd2 {[%clk 0:00:05]} 38. Rff7 {[%clk 0:00:05]}  e3 {[%clk 0:00:04]} 39. Rfe7 {[%clk 0:00:01]}  Qg5 {[%clk 0:00:02]} 40. Bb2 {[%clk 0:00:00]}  Qg2 {[%clk 0:00:02]} 0-1

[Event "January 2 Early 2024"]
[Site "https://www.chess.com"]
[Date "2024.01.02"]
[Round "4"]
[White "Novikova, Margarita"]
[Black "Diaz, Fernando"]
[Result "0-1"]
[Board "218"]
[TimeControl "180+1"]
[WhiteFideId "14109689"]
[BlackFideId "3701255"]
[WhiteElo "2106"]
[BlackElo "2291"]
[WhiteTeam "GER"]
[BlackTeam "PAR"]
[WhiteClock "0:00:43"]
[BlackClock "0:01:05"]

1. e4 {[%clk 0:02:58]}  e6 {[%clk 0:02:57]} 2. d4 {[%clk 0:02:58]}  d5 {[%clk 0:02:52]} 3. exd5 {[%clk 0:02:57]}  exd5 {[%clk 0:02:50]} 4. Bd3 {[%clk 0:02:57]}  c6 {[%clk 0:02:51]} 5. Nf3 {[%clk 0:02:57]}  Bd6 {[%clk 0:02:49]} 6. O-O {[%clk 0:02:57]}  Ne7 {[%clk 0:02:44]} 7. Re1 {[%clk 0:02:56]}  O-O {[%clk 0:02:38]} 8. b3 {[%clk 0:02:52]}  Bf5 {[%clk 0:02:35]} 9. c4 {[%clk 0:02:50]}  Bxd3 {[%clk 0:02:31]} 10. Qxd3 {[%clk 0:02:50]}  Nd7 {[%clk 0:02:25]} 11. Bg5 {[%clk 0:02:49]}  f6 {[%clk 0:02:25]} 12. Bh4 {[%clk 0:02:47]}  Ng6 {[%clk 0:02:24]} 13. Bg3 {[%clk 0:02:47]}  Qc7 {[%clk 0:02:19]} 14. c5 {[%clk 0:02:46]}  Bf4 {[%clk 0:02:19]} 15. Nbd2 {[%clk 0:02:37]}  Rae8 {[%clk 0:02:18]} 16. b4 {[%clk 0:02:35]}  Bxg3 {[%clk 0:02:17]} 17. hxg3 {[%clk 0:02:35]}  Kf7 {[%clk 0:02:09]} 18. a4 {[%clk 0:02:32]}  Nb8 {[%clk 0:02:04]} 19. b5 {[%clk 0:02:29]}  a6 {[%clk 0:02:03]} 20. Qf5 {[%clk 0:02:19]}  Qd7 {[%clk 0:02:01]} 21. g4 {[%clk 0:02:16]}  Qxf5 {[%clk 0:02:00]} 22. gxf5 {[%clk 0:02:15]}  Nf4 {[%clk 0:02:00]} 23. Reb1 {[%clk 0:02:01]}  g5 {[%clk 0:01:52]} 24. fxg6+ {[%clk 0:01:58]}  hxg6 {[%clk 0:01:52]} 25. bxa6 {[%clk 0:01:56]}  bxa6 {[%clk 0:01:53]} 26. Rb7+ {[%clk 0:01:53]}  Re7 {[%clk 0:01:53]} 27. Rab1 {[%clk 0:01:53]}  g5 {[%clk 0:01:47]} 28. Rxb8 {[%clk 0:01:52]}  Rxb8 {[%clk 0:01:45]} 29. Rxb8 {[%clk 0:01:51]}  g4 {[%clk 0:01:35]} 30. Nh2 {[%clk 0:01:47]}  Re1+ {[%clk 0:01:33]} 31. Nhf1 {[%clk 0:01:47]}  Ne2+ {[%clk 0:01:33]} 32. Kh2 {[%clk 0:01:39]}  Nxd4 {[%clk 0:01:32]} 33. Kg3 {[%clk 0:01:39]}  f5 {[%clk 0:01:27]} 34. Kf4 {[%clk 0:01:31]}  Kf6 {[%clk 0:01:19]} 35. Rf8+ {[%clk 0:01:31]}  Kg7 {[%clk 0:01:17]} 36. Rd8 {[%clk 0:01:29]}  Ne6+ {[%clk 0:01:16]} 37. Kxf5 {[%clk 0:01:27]}  Nxd8 {[%clk 0:01:17]} 38. Kxg4 {[%clk 0:01:27]}  Ra1 {[%clk 0:01:17]} 39. f4 {[%clk 0:01:22]}  Rxa4 {[%clk 0:01:17]} 40. Kf5 {[%clk 0:01:21]}  Kf7 {[%clk 0:01:17]} 41. g4 {[%clk 0:01:21]}  Ne6 {[%clk 0:01:17]} 42. Ke5 {[%clk 0:01:15]}  Rxf4 {[%clk 0:01:11]} 43. g5 {[%clk 0:01:15]}  Rf2 {[%clk 0:01:08]} 44. g6+ {[%clk 0:01:12]}  Ke7 {[%clk 0:01:08]} 45. g7 {[%clk 0:01:00]}  Nxg7 {[%clk 0:01:07]} 46. Ng3 {[%clk 0:00:43]}  Rxd2 {[%clk 0:01:05]} 0-1

[Event "January 2 Early 2024"]
[Site "https://www.chess.com"]
[Date "2024.01.02"]
[Round "4"]
[White "Martin, Lewis"]
[Black "Dahlgren, James Allen"]
[Result "1-0"]
[Board "219"]
[TimeControl "180+1"]
[WhiteFideId "410551"]
[BlackFideId "22256873"]
[WhiteElo "2290"]
[BlackElo "2102"]
[WhiteTeam "ENG"]
[BlackTeam "ESP"]
[WhiteClock "0:00:53"]
[BlackClock "0:00:04"]

1. c4 {[%clk 0:03:00]}  e6 {[%clk 0:02:51]} 2. g3 {[%clk 0:02:59]}  d5 {[%clk 0:02:52]} 3. Bg2 {[%clk 0:02:59]}  Nf6 {[%clk 0:02:52]} 4. Nf3 {[%clk 0:02:57]}  c5 {[%clk 0:02:52]} 5. cxd5 {[%clk 0:02:52]}  exd5 {[%clk 0:02:53]} 6. d4 {[%clk 0:02:51]}  Nc6 {[%clk 0:02:50]} 7. O-O {[%clk 0:02:50]}  Be6 {[%clk 0:02:50]} 8. Nc3 {[%clk 0:02:48]}  cxd4 {[%clk 0:02:49]} 9. Nxd4 {[%clk 0:02:48]}  Be7 {[%clk 0:02:49]} 10. Bg5 {[%clk 0:02:46]}  O-O {[%clk 0:02:49]} 11. Rc1 {[%clk 0:02:45]}  h6 {[%clk 0:02:49]} 12. Bxf6 {[%clk 0:02:21]}  Bxf6 {[%clk 0:02:50]} 13. Nb3 {[%clk 0:02:13]}  d4 {[%clk 0:02:45]} 14. Nb5 {[%clk 0:02:11]}  Bd5 {[%clk 0:02:31]} 15. Bxd5 {[%clk 0:01:58]}  Qxd5 {[%clk 0:02:32]} 16. Nc7 {[%clk 0:01:58]}  Qd7 {[%clk 0:02:17]} 17. Nxa8 {[%clk 0:01:57]}  Rxa8 {[%clk 0:02:18]} 18. Nc5 {[%clk 0:01:46]}  Qe7 {[%clk 0:02:18]} 19. Nd3 {[%clk 0:01:44]}  Re8 {[%clk 0:02:11]} 20. Re1 {[%clk 0:01:39]}  Qd6 {[%clk 0:01:57]} 21. Qa4 {[%clk 0:01:37]}  a6 {[%clk 0:01:52]} 22. Kf1 {[%clk 0:01:21]}  Qd5 {[%clk 0:01:48]} 23. Kg1 {[%clk 0:01:18]}  g6 {[%clk 0:01:43]} 24. Rc5 {[%clk 0:01:16]}  Qd7 {[%clk 0:01:27]} 25. b4 {[%clk 0:01:12]}  Qe6 {[%clk 0:01:06]} 26. b5 {[%clk 0:01:09]}  axb5 {[%clk 0:00:51]} 27. Rxb5 {[%clk 0:01:06]}  Re7 {[%clk 0:00:41]} 28. Qb3 {[%clk 0:01:05]}  Qc8 {[%clk 0:00:24]} 29. Nf4 {[%clk 0:00:56]}  Ne5 {[%clk 0:00:19]} 30. Nd5 {[%clk 0:00:54]}  Re6 {[%clk 0:00:08]} 31. Nxf6+ {[%clk 0:00:53]}  Rxf6 {[%clk 0:00:04]} 32. Rxe5 {[%clk 0:00:53]} 1-0

[Event "January 2 Early 2024"]
[Site "https://www.chess.com"]
[Date "2024.01.02"]
[Round "4"]
[White "Nikulina, Alena"]
[Black "Alonso Garcia, Rene Marcial"]
[Result "1-0"]
[Board "220"]
[TimeControl "180+1"]
[WhiteFideId "4172051"]
[BlackFideId "3500276"]
[WhiteElo "2064"]
[BlackElo "2285"]
[WhiteTeam "RUS"]
[BlackTeam "FID"]
[WhiteClock "0:00:04"]
[BlackClock "0:00:00"]

1. e4 {[%clk 0:02:59]}  e5 {[%clk 0:02:59]} 2. Nf3 {[%clk 0:02:58]}  Nc6 {[%clk 0:02:59]} 3. Bb5 {[%clk 0:02:58]}  a6 {[%clk 0:02:57]} 4. Ba4 {[%clk 0:02:58]}  Nf6 {[%clk 0:02:57]} 5. O-O {[%clk 0:02:57]}  b5 {[%clk 0:02:57]} 6. Bb3 {[%clk 0:02:56]}  Bb7 {[%clk 0:02:57]} 7. Re1 {[%clk 0:02:53]}  Bc5 {[%clk 0:02:55]} 8. c3 {[%clk 0:02:48]}  d6 {[%clk 0:02:54]} 9. d4 {[%clk 0:02:48]}  Bb6 {[%clk 0:02:54]} 10. a4 {[%clk 0:02:46]}  h6 {[%clk 0:02:53]} 11. axb5 {[%clk 0:02:45]}  axb5 {[%clk 0:02:52]} 12. Rxa8 {[%clk 0:02:45]}  Qxa8 {[%clk 0:02:51]} 13. Na3 {[%clk 0:02:45]}  O-O {[%clk 0:02:41]} 14. Nxb5 {[%clk 0:02:43]}  exd4 {[%clk 0:02:40]} 15. Nbxd4 {[%clk 0:02:37]}  Nxd4 {[%clk 0:02:39]} 16. Nxd4 {[%clk 0:02:31]}  Bxe4 {[%clk 0:02:39]} 17. f3 {[%clk 0:02:24]}  Bg6 {[%clk 0:02:38]} 18. Kh1 {[%clk 0:02:21]}  Re8 {[%clk 0:02:17]} 19. Rxe8+ {[%clk 0:01:53]}  Qxe8 {[%clk 0:02:14]} 20. Bf4 {[%clk 0:01:35]}  Bxd4 {[%clk 0:02:03]} 21. cxd4 {[%clk 0:01:35]}  Qb5 {[%clk 0:02:02]} 22. h3 {[%clk 0:01:28]}  Bd3 {[%clk 0:01:51]} 23. Kh2 {[%clk 0:01:21]}  Bc4 {[%clk 0:01:51]} 24. Bxc4 {[%clk 0:01:15]}  Qxc4 {[%clk 0:01:50]} 25. b3 {[%clk 0:01:14]}  Qe6 {[%clk 0:01:47]} 26. Qc2 {[%clk 0:01:10]}  Nd5 {[%clk 0:01:46]} 27. Bg3 {[%clk 0:01:05]}  h5 {[%clk 0:01:13]} 28. h4 {[%clk 0:01:04]}  g6 {[%clk 0:01:08]} 29. b4 {[%clk 0:01:00]}  Qe3 {[%clk 0:01:02]} 30. Qc4 {[%clk 0:00:46]}  Qe6 {[%clk 0:00:53]} 31. b5 {[%clk 0:00:45]}  Ne3 {[%clk 0:00:37]} 32. Qd3 {[%clk 0:00:38]}  Nf5 {[%clk 0:00:33]} 33. Bf2 {[%clk 0:00:34]}  Qd5 {[%clk 0:00:32]} 34. Qc3 {[%clk 0:00:28]}  Qxb5 {[%clk 0:00:26]} 35. Qxc7 {[%clk 0:00:27]}  Qe2 {[%clk 0:00:25]} 36. Bg3 {[%clk 0:00:15]}  Ne3 {[%clk 0:00:20]} 37. Qd8+ {[%clk 0:00:11]}  Kh7 {[%clk 0:00:20]} 38. Bf2 {[%clk 0:00:08]}  Qxf2 {[%clk 0:00:18]} 39. Qg5 {[%clk 0:00:08]}  Nf5 {[%clk 0:00:11]} 40. Kh3 {[%clk 0:00:06]}  Qxd4 {[%clk 0:00:10]} 41. g4 {[%clk 0:00:04]}  hxg4+ {[%clk 0:00:09]} 42. fxg4 {[%clk 0:00:04]}  Qe3+ {[%clk 0:00:09]} 43. Kh2 {[%clk 0:00:04]}  Qxg5 {[%clk 0:00:07]} 44. hxg5 {[%clk 0:00:04]}  Ne7 {[%clk 0:00:00]} 45. Kg3 {[%clk 0:00:04]} 1-0

[Event "January 2 Early 2024"]
[Site "https://www.chess.com"]
[Date "2024.01.02"]
[Round "4"]
[White "Desideri, Ricardo Maruchi"]
[Black "Lopez Del Alamo, Antonio"]
[Result "0-1"]
[Board "223"]
[TimeControl "180+1"]
[WhiteFideId "2110440"]
[BlackFideId "2227339"]
[WhiteElo "1982"]
[BlackElo "2263"]
[WhiteTeam "BRA"]
[BlackTeam "ESP"]
[WhiteClock "0:00:42"]
[BlackClock "0:01:46"]

1. e4 {[%clk 0:03:00]}  c5 {[%clk 0:02:24]} 2. Nf3 {[%clk 0:02:53]}  e6 {[%clk 0:02:24]} 3. d4 {[%clk 0:02:52]}  cxd4 {[%clk 0:02:16]} 4. Nxd4 {[%clk 0:02:52]}  Nf6 {[%clk 0:02:17]} 5. Nc3 {[%clk 0:02:52]}  Nc6 {[%clk 0:02:18]} 6. Be3 {[%clk 0:02:52]}  Bb4 {[%clk 0:02:15]} 7. Nxc6 {[%clk 0:02:49]}  bxc6 {[%clk 0:02:15]} 8. Qd4 {[%clk 0:02:45]}  c5 {[%clk 0:02:14]} 9. Qd3 {[%clk 0:02:42]}  d5 {[%clk 0:02:13]} 10. exd5 {[%clk 0:02:38]}  exd5 {[%clk 0:02:14]} 11. a3 {[%clk 0:02:33]}  Bxc3+ {[%clk 0:02:10]} 12. bxc3 {[%clk 0:02:33]}  O-O {[%clk 0:02:08]} 13. Be2 {[%clk 0:02:31]}  a5 {[%clk 0:02:01]} 14. Bxc5 {[%clk 0:02:26]}  Ba6 {[%clk 0:01:57]} 15. Qd2 {[%clk 0:02:17]}  Re8 {[%clk 0:01:57]} 16. Be3 {[%clk 0:02:16]}  Ne4 {[%clk 0:01:56]} 17. Qd4 {[%clk 0:02:05]}  Bxe2 {[%clk 0:01:55]} 18. Kxe2 {[%clk 0:02:05]}  Qd7 {[%clk 0:01:53]} 19. f3 {[%clk 0:01:58]}  Nd6 {[%clk 0:01:49]} 20. g4 {[%clk 0:00:42]}  Nc4 {[%clk 0:01:46]} 0-1

[Event "January 2 Early 2024"]
[Site "https://www.chess.com"]
[Date "2024.01.02"]
[Round "4"]
[White "Burdalev, Kirill"]
[Black "Smirnov, Timofey"]
[Result "0-1"]
[Board "224"]
[TimeControl "180+1"]
[WhiteFideId "14121913"]
[BlackFideId "24176427"]
[WhiteElo "2262"]
[BlackElo "1977"]
[WhiteTeam "CZE"]
[BlackTeam "RUS"]
[WhiteClock "0:00:03"]
[BlackClock "0:00:03"]

1. d4 {[%clk 0:02:55]}  d5 {[%clk 0:02:59]} 2. c4 {[%clk 0:02:56]}  c6 {[%clk 0:02:59]} 3. Nc3 {[%clk 0:02:55]}  Nf6 {[%clk 0:03:00]} 4. e3 {[%clk 0:02:56]}  a6 {[%clk 0:02:56]} 5. Nf3 {[%clk 0:02:52]}  e6 {[%clk 0:02:54]} 6. b3 {[%clk 0:02:53]}  Bb4 {[%clk 0:02:49]} 7. Bd2 {[%clk 0:02:53]}  Qa5 {[%clk 0:02:45]} 8. Rc1 {[%clk 0:02:42]}  O-O {[%clk 0:01:53]} 9. Bd3 {[%clk 0:02:43]}  dxc4 {[%clk 0:01:47]} 10. bxc4 {[%clk 0:02:42]}  Nbd7 {[%clk 0:01:25]} 11. O-O {[%clk 0:02:41]}  b5 {[%clk 0:01:20]} 12. c5 {[%clk 0:02:27]}  Nd5 {[%clk 0:01:08]} 13. Ne4 {[%clk 0:01:48]}  Bxd2 {[%clk 0:00:57]} 14. Nfxd2 {[%clk 0:01:46]}  N7f6 {[%clk 0:00:54]} 15. Nd6 {[%clk 0:01:45]}  Ne8 {[%clk 0:00:37]} 16. e4 {[%clk 0:01:43]}  Nc3 {[%clk 0:00:32]} 17. Bb1 {[%clk 0:01:44]}  Nxd1 {[%clk 0:00:32]} 18. Rfxd1 {[%clk 0:01:43]}  Nxd6 {[%clk 0:00:31]} 19. cxd6 {[%clk 0:01:44]}  Qd8 {[%clk 0:00:30]} 20. e5 {[%clk 0:01:44]}  Bb7 {[%clk 0:00:29]} 21. Ne4 {[%clk 0:01:39]}  Rc8 {[%clk 0:00:25]} 22. Nc5 {[%clk 0:01:40]}  Ba8 {[%clk 0:00:25]} 23. f4 {[%clk 0:01:34]}  Qb6 {[%clk 0:00:22]} 24. Nd7 {[%clk 0:01:32]}  Qd8 {[%clk 0:00:22]} 25. Nc5 {[%clk 0:01:29]}  Re8 {[%clk 0:00:20]} 26. Be4 {[%clk 0:01:27]}  Qb6 {[%clk 0:00:19]} 27. g3 {[%clk 0:01:26]}  Red8 {[%clk 0:00:18]} 28. Kg2 {[%clk 0:01:26]}  a5 {[%clk 0:00:17]} 29. a3 {[%clk 0:01:17]}  a4 {[%clk 0:00:17]} 30. Rb1 {[%clk 0:01:16]}  f6 {[%clk 0:00:16]} 31. Nxe6 {[%clk 0:01:11]}  Rd7 {[%clk 0:00:13]} 32. Nc5 {[%clk 0:01:11]}  Rcd8 {[%clk 0:00:12]} 33. Rdc1 {[%clk 0:00:55]}  Qa7 {[%clk 0:00:11]} 34. Rb4 {[%clk 0:00:52]}  fxe5 {[%clk 0:00:11]} 35. dxe5 {[%clk 0:00:52]}  h6 {[%clk 0:00:10]} 36. h4 {[%clk 0:00:52]}  Re8 {[%clk 0:00:09]} 37. h5 {[%clk 0:00:43]}  Rf8 {[%clk 0:00:07]} 38. Rd4 {[%clk 0:00:39]}  Rfd8 {[%clk 0:00:05]} 39. Rcd1 {[%clk 0:00:37]}  Qxc5 {[%clk 0:00:05]} 40. g4 {[%clk 0:00:36]}  Qxa3 {[%clk 0:00:03]} 41. R1d3 {[%clk 0:00:36]}  Qc5 {[%clk 0:00:03]} 42. g5 {[%clk 0:00:36]}  Qa7 {[%clk 0:00:04]} 43. gxh6 {[%clk 0:00:35]}  gxh6 {[%clk 0:00:04]} 44. Kh3 {[%clk 0:00:34]}  Rg7 {[%clk 0:00:05]} 45. f5 {[%clk 0:00:33]}  Rdd7 {[%clk 0:00:04]} 46. f6 {[%clk 0:00:33]}  Rg5 {[%clk 0:00:02]} 47. Bg6 {[%clk 0:00:31]}  Rxg6 {[%clk 0:00:02]} 48. hxg6 {[%clk 0:00:30]}  c5 {[%clk 0:00:03]} 49. e6 {[%clk 0:00:29]}  cxd4 {[%clk 0:00:03]} 50. f7+ {[%clk 0:00:20]}  Kg7 {[%clk 0:00:03]} 51. e7 {[%clk 0:00:20]}  Rxe7 {[%clk 0:00:03]} 52. dxe7 {[%clk 0:00:20]}  Qxe7 {[%clk 0:00:03]} 53. Rxd4 {[%clk 0:00:16]}  Qe3+ {[%clk 0:00:04]} 54. Kh4 {[%clk 0:00:15]}  Qxd4+ {[%clk 0:00:04]} 55. Kh5 {[%clk 0:00:03]}  Qe3 {[%clk 0:00:03]} 0-1

[Event "January 2 Early 2024"]
[Site "https://www.chess.com"]
[Date "2024.01.02"]
[Round "4"]
[White "Thake, Conrad"]
[Black "Chirivi C, Jenny Astrid"]
[Result "0-1"]
[Board "226"]
[TimeControl "180+1"]
[WhiteFideId "5602947"]
[BlackFideId "4403061"]
[WhiteElo "1877"]
[BlackElo "2238"]
[WhiteTeam "MLT"]
[BlackTeam "COL"]
[WhiteClock "0:00:14"]
[BlackClock "0:00:10"]

1. e4 {[%clk 0:03:00]}  c5 {[%clk 0:02:58]} 2. Nf3 {[%clk 0:02:59]}  e6 {[%clk 0:02:58]} 3. c4 {[%clk 0:02:55]}  Nc6 {[%clk 0:02:56]} 4. Nc3 {[%clk 0:02:54]}  g6 {[%clk 0:02:53]} 5. d4 {[%clk 0:02:54]}  cxd4 {[%clk 0:02:49]} 6. Nxd4 {[%clk 0:02:54]}  Nf6 {[%clk 0:02:46]} 7. Be3 {[%clk 0:02:53]}  Bg7 {[%clk 0:02:43]} 8. Be2 {[%clk 0:02:49]}  O-O {[%clk 0:02:42]} 9. O-O {[%clk 0:02:49]}  a6 {[%clk 0:02:40]} 10. Qd2 {[%clk 0:02:45]}  Qc7 {[%clk 0:02:25]} 11. f4 {[%clk 0:02:44]}  d6 {[%clk 0:02:21]} 12. Nxc6 {[%clk 0:02:41]}  Qxc6 {[%clk 0:02:19]} 13. Qd4 {[%clk 0:02:13]}  Ng4 {[%clk 0:02:03]} 14. Qd2 {[%clk 0:02:11]}  Nxe3 {[%clk 0:02:02]} 15. Qxe3 {[%clk 0:02:11]}  Qc5 {[%clk 0:01:56]} 16. Qxc5 {[%clk 0:02:09]}  dxc5 {[%clk 0:01:56]} 17. e5 {[%clk 0:02:06]}  Bd7 {[%clk 0:01:50]} 18. Rfd1 {[%clk 0:02:05]}  Bc6 {[%clk 0:01:49]} 19. Kf2 {[%clk 0:02:02]}  Rfd8 {[%clk 0:01:48]} 20. Bf3 {[%clk 0:02:01]}  Bxf3 {[%clk 0:01:35]} 21. Kxf3 {[%clk 0:02:00]}  f6 {[%clk 0:01:35]} 22. Ke4 {[%clk 0:01:53]}  Rac8 {[%clk 0:01:12]} 23. Rxd8+ {[%clk 0:01:53]}  Rxd8 {[%clk 0:01:11]} 24. Rd1 {[%clk 0:01:53]}  Rxd1 {[%clk 0:01:06]} 25. Nxd1 {[%clk 0:01:53]}  Kf7 {[%clk 0:01:02]} 26. a4 {[%clk 0:01:51]}  b6 {[%clk 0:00:59]} 27. Nf2 {[%clk 0:01:38]}  Ke7 {[%clk 0:00:52]} 28. Nd3 {[%clk 0:01:35]}  Kd7 {[%clk 0:00:51]} 29. g4 {[%clk 0:01:34]}  Kc6 {[%clk 0:00:47]} 30. h4 {[%clk 0:01:25]}  b5 {[%clk 0:00:46]} 31. axb5+ {[%clk 0:01:21]}  axb5 {[%clk 0:00:46]} 32. cxb5+ {[%clk 0:01:20]}  Kxb5 {[%clk 0:00:46]} 33. exf6 {[%clk 0:01:18]}  Bxf6 {[%clk 0:00:46]} 34. g5 {[%clk 0:01:12]}  Bh8 {[%clk 0:00:31]} 35. Ne5 {[%clk 0:01:07]}  Kb4 {[%clk 0:00:30]} 36. Nd3+ {[%clk 0:00:55]}  Kc4 {[%clk 0:00:26]} 37. Ne5+ {[%clk 0:00:54]}  Kb3 {[%clk 0:00:25]} 38. Nd7 {[%clk 0:00:40]}  c4 {[%clk 0:00:22]} 39. Nf8 {[%clk 0:00:38]}  Kxb2 {[%clk 0:00:20]} 40. Nxe6 {[%clk 0:00:36]}  c3 {[%clk 0:00:20]} 41. Nc5 {[%clk 0:00:34]}  c2 {[%clk 0:00:20]} 42. Nd3+ {[%clk 0:00:35]}  Kc3 {[%clk 0:00:19]} 43. Nc1 {[%clk 0:00:31]}  Kc4 {[%clk 0:00:18]} 44. f5 {[%clk 0:00:30]}  gxf5+ {[%clk 0:00:17]} 45. Kxf5 {[%clk 0:00:30]}  Bb2 {[%clk 0:00:17]} 46. Ne2 {[%clk 0:00:30]}  Kd3 {[%clk 0:00:17]} 47. Nf4+ {[%clk 0:00:29]}  Kd2 {[%clk 0:00:16]} 48. g6 {[%clk 0:00:27]}  hxg6+ {[%clk 0:00:15]} 49. Kxg6 {[%clk 0:00:22]}  c1=Q {[%clk 0:00:15]} 50. h5 {[%clk 0:00:22]}  Qc6+ {[%clk 0:00:15]} 51. Kg5 {[%clk 0:00:20]}  Qc5+ {[%clk 0:00:12]} 52. Kg6 {[%clk 0:00:18]}  Ke3 {[%clk 0:00:11]} 53. Ne6 {[%clk 0:00:16]}  Qc6 {[%clk 0:00:10]} 54. Kf7 {[%clk 0:00:16]}  Qd7+ {[%clk 0:00:10]} 55. Kf8 {[%clk 0:00:14]}  Qxe6 {[%clk 0:00:10]} 56. h6 {[%clk 0:00:14]}  Qxh6+ {[%clk 0:00:09]} 57. Kg8 {[%clk 0:00:14]}  Qg7# {[%clk 0:00:10]} 0-1